Cogmind - Beta 17 @@@ ROGUE MODE // 2026.07.16 @ 08:13:27 // Winter2019/RPGLIKE Player: Gallgagger Result: Self-destructed Performance ------------- Evolutions (1) 500 Regions Visited (6) 1200 Robots Destroyed (0) 0 Value Destroyed (0) 0 Prototype IDs (2) 40 Alien Tech Used (0) 0 Bonus (500) 500 TOTAL SCORE: 2240 Bonus ------- Pacifist 200 Aligned with FarCom 300 Cogmind --------- Core Integrity 378/1200 Matter 214/300 Energy 100/100 System Corruption 15% Temperature Cool (0) Movement Core (50) Location -8/Mines Parts ------- > --- POWER (1) -------- (None) > --- PROPULSION (1) --- Improved Flight Unit > --- UTILITY (1) ------ (None) > --- WEAPON (1) ------- (None) > --- INVENTORY (0) ---- (None) Peak State ------------ > --- POWER ------------ (None) > --- PROPULSION ------- Improved Flight Unit > --- UTILITY ---------- (None) > --- WEAPON ----------- Latent Energy Streamer > --- INVENTORY -------- (None) [Rating: 13] Favorites ----------- Power None Propulsion Improved Flight Unit Flight Unit Improved Flight Unit Utility None Weapon Latent Energy Streamer Energy Cannon Latent Energy Streamer Build | -11 -10 -10 -9 -9 -9 -8 ------- Run | Yrd Mat Min Mat Min Exi Min Slots Evolved . | . . . . . . . Power . | . . . . . . . Propulsion . | . . . . . . . Utility . | . . . . . . . Weapon . | . . . . . . . Parts Attached 3 | . . . 2 . 1 . Power . | . . . . . . . Engine . | . . . . . . . Core . | . . . . . . . Reactor . | . . . . . . . Propulsion 2 | . . . 2 . . . Treads . | . . . . . . . Leg . | . . . . . . . Wheel . | . . . . . . . Hover . | . . . . . . . Flight 2 | . . . 2 . . . Utility . | . . . . . . . Device . | . . . . . . . Storage . | . . . . . . . Processor . | . . . . . . . Hackware . | . . . . . . . Protection . | . . . . . . . Artifact . | . . . . . . . Weapon 1 | . . . . . 1 . Energy Gun . | . . . . . . . Energy Cannon 1 | . . . . . 1 . Ballistic Gun . | . . . . . . . Ballistic Cannon . | . . . . . . . Launcher . | . . . . . . . Special Weapon . | . . . . . . . Impact Weapon . | . . . . . . . Slashing Weapon . | . . . . . . . Piercing Weapon . | . . . . . . . Special Melee Weapon . | . . . . . . . Unidentified Prototypes 2 | . . . 1 . 1 . Corrupted Parts 2 | . . . 2 . . . System Corruption 14 | . . . 14 . . . Parts Lost . | . . . . . . . Power . | . . . . . . . Propulsion . | . . . . . . . Utility . | . . . . . . . Weapon . | . . . . . . . Highest Loss Streak . | . . . . . . . To Critical Strikes . | . . . . . . . Average Backups . | . . . . . . . Power . | . . . . . . . Propulsion . | . . . . . . . Utility . | . . . . . . . Weapon . | . . . . . . . Tool/Special . | . . . . . . . Unused Backups . | . . . . . . . Power . | . . . . . . . Propulsion . | . . . . . . . Utility . | . . . . . . . Weapon . | . . . . . . . Tool/Special . | . . . . . . . Average Slot Usage (%) 11 | . . . 11 25 25 . Flight 11 | . . . 11 25 25 . Peak Build Rating 13 | . . . 3 3 13 . Average Rating 1 | . . . 1 3 3 . On Entrance 1 | . . . . 3 3 3 Avg Prop Armor Cover (%) 11 | . . . . . 11 . Naked Turns 236 | . 32 156 48 . . . Heaviest Build . | . . . . . . . Greatest Support 5 | 3 3 3 5 5 5 . Greatest Overweight (x) . | . . . . . . . Average Overweight (x) . | . . . . . . . Largest Inventory Capacity . | . . . . . . . Average Capacity . | . . . . . . . Most Carried . | . . . . . . . Average Carried . | . . . . . . . Final Capacity . | . . . . . . . Final Carried . | . . . . . . . Class Distribution -------------------- 100% | Mutant Dominant Class ---------------- Mutant | -10/Materials Mutant | -10/Mines Mutant | -9/Materials Mutant | -9/Mines Mutant | -9/Exiles Mutant | -8/Mines Resources | -11 -10 -10 -9 -9 -9 -8 ----------- Run | Yrd Mat Min Mat Min Exi Min Matter Collected 113 | 56 . . . 57 . . Remotely . | . . . . . . . Salvage Created . | . . . . . . . Parts . | . . . . . . . Haulers Intercepted . | . . . . . . . Recyclers Shooed . | . . . . . . . Parts Field Recycled . | . . . . . . . Retrieved Matter . | . . . . . . . Parts Self-Destructed . | . . . . . . . Prevented . | . . . . . . . Parts Restored . | . . . . . . . Kills | -11 -10 -10 -9 -9 -9 -8 ------- Run | Yrd Mat Min Mat Min Exi Min Combat Hostiles Destroyed . | . . . . . . . Classes Destroyed . | . . . . . . . Best Kill Streak . | . . . . . . . Combat Bots Only . | . . . . . . . Max Kills in Single Turn . | . . . . . . . Gunslinging . | . . . . . . . Exploded . | . . . . . . . Melee . | . . . . . . . Uniques/NPCs Destroyed . | . . . . . . . Combat | -11 -10 -10 -9 -9 -9 -8 -------- Run | Yrd Mat Min Mat Min Exi Min Hostile Shots Fired 116 | . 4 45 63 4 . . Missed 48 | . 1 19 26 2 . . Hits 68 | . 3 26 37 2 . . Projectile 68 | . 3 26 37 2 . . Damage Taken 839 | . 40 244 513 20 22 . Core 822 | . 40 244 501 20 17 . Absorbed by Shields . | . . . . . . . Redirected to Core 56 | . . . 39 . 17 . Core Remaining (%) 76 | 100 . 52 . . . . Volleys Fired . | . . . . . . . Largest . | . . . . . . . Hottest . | . . . . . . . Shots Fired . | . . . . . . . Gun . | . . . . . . . Cannon . | . . . . . . . Launcher . | . . . . . . . Special . | . . . . . . . Kinetic . | . . . . . . . Thermal . | . . . . . . . Explosive . | . . . . . . . Electromagnetic . | . . . . . . . Robot Hit Streak . | . . . . . . . Robot Miss Streak . | . . . . . . . Penetration Max . | . . . . . . . Secondary Targets . | . . . . . . . Shots Hit Robots . | . . . . . . . Core Hits 2 | . . 1 1 . . . Critical Kills . | . . . . . . . Critical Parts Destroyed . | . . . . . . . Critical Strikes . | . . . . . . . Melee Attacks . | . . . . . . . Impact . | . . . . . . . Slashing . | . . . . . . . Piercing . | . . . . . . . Sneak Attacks . | . . . . . . . Combat Hostiles . | . . . . . . . Follow-up Attacks . | . . . . . . . Damage Inflicted 58 | . 4 14 18 . 22 . Guns . | . . . . . . . Cannons . | . . . . . . . Explosions . | . . . . . . . Melee . | . . . . . . . Ramming 58 | . 4 14 18 . 22 . Kinetic . | . . . . . . . Thermal . | . . . . . . . Explosive . | . . . . . . . Electromagnetic . | . . . . . . . Impact . | . . . . . . . Slashing . | . . . . . . . Piercing . | . . . . . . . Highest Corruption 15 | . . . 15 15 15 . Average Corruption 14 | . . . 14 15 15 . Corruption Purged . | . . . . . . . Corruption Blocked . | . . . . . . . Effects 6 | . . . 2 2 2 . Matter Fused 1 | . . . . . 1 . Heat Flow Errors 2 | . . . 1 . 1 . Energy Discharges 2 | . . . 1 1 . . Data Loss (minor) 1 | . . . . 1 . . Overload Shots . | . . . . . . . Overflow Damage . | . . . . . . . Projectiles . | . . . . . . . Explosions . | . . . . . . . Melee . | . . . . . . . Knockbacks . | . . . . . . . Impact . | . . . . . . . Kinetic . | . . . . . . . Secondary . | . . . . . . . Self-Inflicted Damage 38 | . 2 6 8 . 22 . Shots . | . . . . . . . Rammed 11 | . 1 5 5 . . . Targets Rammed 11 | . 1 5 5 . . . Kicked . | . . . . . . . Crushed . | . . . . . . . Highest Temperature 288 | . . . 288 . 215 . Average Temperature 133 | . . . 142 . 118 . Received Heat Transfer 348 | . 24 69 243 12 . . Siege Activations . | . . . . . . . Martial Activations . | . . . . . . . Shielding Activations . | . . . . . . . Robots Disrupted . | . . . . . . . Combat Hostiles . | . . . . . . . Robots Corrupted . | . . . . . . . Combat Hostiles . | . . . . . . . Parts Fried . | . . . . . . . Impact Corruptions . | . . . . . . . Robots Melted . | . . . . . . . Combat Hostiles . | . . . . . . . Parts Melted . | . . . . . . . Heat Transferred . | . . . . . . . Parts Sabotaged . | . . . . . . . Parts Stolen . | . . . . . . . Parts Stripped . | . . . . . . . Power Chain Reactions . | . . . . . . . Alert | -11 -10 -10 -9 -9 -9 -8 ------- Run | Yrd Mat Min Mat Min Exi Min Maximum Alert Level . | . . . . . . . Low Security (%) 100 | 100 100 100 100 100 . . Level 1 . | . . . . . . . Level 2 . | . . . . . . . Level 3 . | . . . . . . . Level 4 . | . . . . . . . Level 5 . | . . . . . . . High Security . | . . . . . . . Max Security . | . . . . . . . Peak Influence 95 | . 16 85 95 67 . . Initial 42 | . . 1 29 42 . . Average 29 | . 3 33 19 48 . . Influence Increases 301 | . 16 120 120 45 . . Successful Hack 16 | . 16 . . . . . Lose Combat Pursuer 285 | . . 120 120 45 . . Influence Decreases 301 | . 10 51 85 98 57 . Entered New Map 176 | . . 5 46 68 57 . Time Decay 125 | . 10 46 39 30 . . Squads Dispatched 5 | . 1 1 3 . . . Investigation 4 | . 1 1 2 . . . Extermination . | . . . . . . . Reinforcement 1 | . . . 1 . . . Assault . | . . . . . . . Garrison . | . . . . . . . Intercept . | . . . . . . . Searches Triggered . | . . . . . . . Construction Impeded . | . . . . . . . Haulers Reinforced . | . . . . . . . Active Scanning Responses . | . . . . . . . Cargo Convoy Interrupts . | . . . . . . . Stealth | -11 -10 -10 -9 -9 -9 -8 --------- Run | Yrd Mat Min Mat Min Exi Min Distress Signals 2 | . . . 2 . . . Communications Jammed . | . . . . . . . Distress Signals . | . . . . . . . Times Spotted 37 | . 2 15 17 3 . . Peak Tracking Total 14 | . 2 5 14 3 9 . Tactical Retreats 5 | . . 3 1 1 . . Traps | -11 -10 -10 -9 -9 -9 -8 ------- Run | Yrd Mat Min Mat Min Exi Min Traps Triggered 1 | . . . 1 . . . Indirectly . | . . . . . . . Trap Hack Attempts . | . . . . . . . Triggered . | . . . . . . . Disarmed . | . . . . . . . Reprogrammed . | . . . . . . . Reused . | . . . . . . . Traps Extracted . | . . . . . . . Installed . | . . . . . . . Triggered . | . . . . . . . Machines | -11 -10 -10 -9 -9 -9 -8 ---------- Run | Yrd Mat Min Mat Min Exi Min Machines Disabled 1 | . . . . . 1 . Max in Single Turn 1 | . . . . . 1 . Machines Repaired . | . . . . . . . Machines Dismantled . | . . . . . . . Machines Sabotaged . | . . . . . . . Overloaded Fab Kills . | . . . . . . . Hacking | -11 -10 -10 -9 -9 -9 -8 --------- Run | Yrd Mat Min Mat Min Exi Min Machines Accessed 5 | . 1 1 3 . . . Terminals 4 | . 1 . 3 . . . Fabricators . | . . . . . . . Repair Stations . | . . . . . . . Recycling Units . | . . . . . . . Scanalyzers . | . . . . . . . Garrison Access . | . . . . . . . Total Hacks 16 | . 4 1 11 . . . Successful 3 | . 2 1 . . . . Failed 13 | . 2 . 11 . . . Catastrophic 5 | . . . 5 . . . Database Lockouts . | . . . . . . . Manual 16 | . 4 . 11 . 1 . Terminals 15 | . 4 . 11 . . . Fabricators . | . . . . . . . Repair Stations . | . . . . . . . Recycling Units . | . . . . . . . Scanalyzers . | . . . . . . . Garrison Access . | . . . . . . . Terminal Hacks 3 | . 2 1 . . . . Open Door 1 | . . 1 . . . . Branch Access Points 2 | . 2 . . . . . Fabricator Hacks . | . . . . . . . Repair Station Hacks . | . . . . . . . Recycling Unit Hacks . | . . . . . . . Scanalyzer . | . . . . . . . Garrison Access Hacks . | . . . . . . . Unauthorized Hacks . | . . . . . . . Terminals . | . . . . . . . Fabricators . | . . . . . . . Repair Stations . | . . . . . . . Recycling Units . | . . . . . . . Scanalyzers . | . . . . . . . Garrison Access . | . . . . . . . Data Cores Recovered . | . . . . . . . Used . | . . . . . . . Hacking Detections 4 | . 1 . 3 . . . Full Trace Events 4 | . 1 . 3 . . . Feedback Events . | . . . . . . . Feedback Blocked . | . . . . . . . Robot Schematics Acquired . | . . . . . . . Robots Built . | . . . . . . . Authchips . | . . . . . . . Time . | . . . . . . . Total Robot Build Rating . | . . . . . . . Part Schematics Acquired . | . . . . . . . Parts Built . | . . . . . . . Authchips . | . . . . . . . Time . | . . . . . . . Total Part Build Rating . | . . . . . . . Part Studies Acquired . | . . . . . . . Parts Repaired . | . . . . . . . Time . | . . . . . . . Parts Recycled . | . . . . . . . Recycled Matter . | . . . . . . . Retrieved Matter . | . . . . . . . Retrieved Components . | . . . . . . . Parts Scanalyzed . | . . . . . . . Part Schematics Acquired . | . . . . . . . Parts Damaged . | . . . . . . . Bothacking | -11 -10 -10 -9 -9 -9 -8 ------------ Run | Yrd Mat Min Mat Min Exi Min Used RIF Installer . | . . . . . . . Robots Hacked . | . . . . . . . Non-combat . | . . . . . . . Combat . | . . . . . . . Robot Hacks Applied . | . . . . . . . Relay Couplers Released . | . . . . . . . Fabnet Peak Effective % . | . . . . . . . Robots Rewired . | . . . . . . . Allies Hacked . | . . . . . . . Hacks Repelled . | . . . . . . . Allies | -11 -10 -10 -9 -9 -9 -8 -------- Run | Yrd Mat Min Mat Min Exi Min Total Allies 2 | . . . . 2 . . Largest Group 2 | . . . . 2 2 . Highest-Rated Group 52 | . . . . 52 52 . Highest-Rated Ally 31 | . . . . 31 31 . Total Orders . | . . . . . . . Ally Attacks . | . . . . . . . Total Damage . | . . . . . . . Kills . | . . . . . . . Allies Corrupted . | . . . . . . . Allies Melted . | . . . . . . . Intel | -11 -10 -10 -9 -9 -9 -8 ------- Run | Yrd Mat Min Mat Min Exi Min Active Infowar (turns) . | . . . . . . . Robot Analysis Total . | . . . . . . . Derelict Logs Recovered 1 | . . 1 . . . . Drone Launches . | . . . . . . . Drone Recoveries . | . . . . . . . Exploration | -11 -10 -10 -9 -9 -9 -8 ------------- Run | Yrd Mat Min Mat Min Exi Min Turns Passed 438 | 10 32 156 83 67 90 . Spaces Moved 865 | 20 62 295 167 113 208 . Core 496 | 20 62 295 84 . 35 . Treads . | . . . . . . . Legs . | . . . . . . . Wheels . | . . . . . . . Hover . | . . . . . . . Flight 369 | . . . 83 113 173 . Fastest Speed 40 | 50 50 50 40 40 40 . Average Speed 45 | 50 50 50 45 40 41 . Slowest Speed 50 | 50 50 50 50 40 50 . Overloaded Moves . | . . . . . . . Propulsion Burnouts . | . . . . . . . Robots Hopped 4 | . . . . 4 . . Potential Cave-ins . | . . . . . . . Cave-ins Triggered . | . . . . . . . Exploration Rate (%) 31 | 2 22 74 35 23 61 3 Regions Visited 6 Branch Regions 4 Pre-discovered Areas 1 | . . 1 . . . . Known Exits Taken 1 | . 1 . . . . . Unknown Exits Taken 5 | 1 . 1 1 1 1 . Scrap Searched 1 | . . . . 1 . . Spaces Dug . | . . . . . . . Terrain Destroyed . | . . . . . . . Melee . | . . . . . . . Projectile . | . . . . . . . AOE . | . . . . . . . Terrain Rammed 1 | . . . . . 1 . Walls Destroyed . | . . . . . . . Machines Disabled 1 | . . . . . 1 . Actions | -11 -10 -10 -9 -9 -9 -8 --------- Run | Yrd Mat Min Mat Min Exi Min Total 897 | 19 62 302 174 130 210 . Wait 25 | . . 3 . 22 . . Move 851 | 19 61 294 166 104 207 . Hop 4 | . . . . 4 . . Pick Up . | . . . . . . . Fast Attach 2 | . . . 1 . 1 . Attach . | . . . . . . . Detach . | . . . . . . . Swap 1 | . . . 1 . . . Drop 2 | . . . 1 . 1 . Fire . | . . . . . . . Melee . | . . . . . . . Ram 12 | . 1 5 5 . 1 . Kick . | . . . . . . . Crush . | . . . . . . . Escape Stasis . | . . . . . . . Rewire . | . . . . . . . Trap . | . . . . . . . Miscellaneous . | . . . . . . . Route ------- -11/Scrapyard -10/Materials -10/Mines -9/Materials (discovered 2 exits: [*Mat] / [*Min]) -9/Mines (discovered 2 exits: [*Mat] / *Exi) -9/Exiles (discovered 2 exits: [*Min x2]) -8/Mines History --------- Turn | Location | Event 2 | -11/Scrapyard | Met Revision 17 3 | -11/Scrapyard | Discovered new exit (range 15) 11 | -11/Scrapyard | Entered Materials 27 | -10/Materials | Identified exit to Mines 43 | -10/Materials | Entered Mines 62 | -10/Mines | Met a Derelict shopkeep closing up shop 105 | -10/Mines | A weapon hastily lodged in a ceiling crevice suddenly fell to the ground 117 | -10/Mines | Learned location of Zion (-7) 171 | -10/Mines | Found a Scrap Suit stashed away for nefarious purposes 191 | -10/Mines | Discovered new exit (range 13) 199 | -10/Mines | Entered Materials 201 | -9/Materials | Reached level 2 230 | -9/Materials | Core integrity fell below 50% 246 | -9/Materials | Core integrity fell below 20% 248 | -9/Materials | System corruption reached 10% 254 | -9/Materials | Discovered new exit (range 12) 280 | -9/Materials | Discovered new exit (range 7) 282 | -9/Materials | Entered Mines 282 | -9/Mines | Discovered new exit (range 13) 308 | -9/Mines | Build established: Mutant 325 | -9/Mines | Deemed a non-threat by the Exiles lab entrance 326 | -9/Mines | Discovered new exit (range 5) 349 | -9/Mines | Entered Exiles 349 | -9/Exiles | Accompanied by 2 allies 356 | -9/Exiles | Discovered new exit (range 15) 360 | -9/Exiles | Met 8R-AWN 366 | -9/Exiles | Met EX-HEX 377 | -9/Exiles | Met EX-BIN 379 | -9/Exiles | Led the pair of lost Derelicts to a safe place 382 | -9/Exiles | Reached level 3 382 | -9/Exiles | Aligned with FarCom system 382 | -9/Exiles | Given EX-Vault access code 391 | -9/Exiles | Opened EX-Vault 394 | -9/Exiles | Found Prototype Energy Cannon 394 | -9/Exiles | Identified Latent Energy Streamer 404 | -9/Exiles | Warned to stay clear of 0b10 Research branches 417 | -9/Exiles | Met EX-DEC 422 | -9/Exiles | Attacked by the Exiles 435 | -9/Exiles | Discovered new exit (range 10) 439 | -9/Exiles | Entered Mines 439 | -8/Mines | Self-destructed Last Messages --------------- 00394_ Identified Latent Energy Streamer. 00395_ Dropped Latent Energy Streamer. EX-BIN: Oh yeah, I'd suggest you stay away from the 0b10 Research branches, since the FarCom signals could be picked up there, but you're welcome to try if you really want to. And if we have to leave here due to unforeseen circumstances, don't worry the FarCom system will continue to maintain contact via our distributed network. EX-DEC: Ah I see we have a visitor. One wrong move in here and I'll invert your atomic chain! 00419_ EX-DEC: "Oops, I hope HEX didn't hear that..." 00421_ Slammed into Machine. 00421_ Machine disabled. 00421_ Imp. Flight Unit broken. 00421_ Destabilizing: Short circuit. 00422_ EXILES: Hostile robot within lab perimeter. Defensive protocols time, folks! 00435_ EXIT=FOUND LOCATION=UNKNOWN GOAL=ESCAPE Map ----- +----------------------------------------------------+ | | | | | | | | | | | | | | | | | | | | | | | | | | | | | | | | | | | | | ????????????????????????????????????? | | ????????????????????????????????????? | | ??????????????????????#########?????? | | ??????????????????????# #?????? | | ??????????????????????# #?????? | | ????????????? s###### gg l#?????? | | ????????????????? #?????? | | ??????????????????????# @ #?????? | | ??????????????????????# #?????? | | ??????????????????????# #?????? | | ??????????????????????#########?????? | | ????????????????????????????????????? | | ????????????????????????????????????? | | ????????????????????????????????????? | | ????????????????????????????????????? | | ????????????????????????????????????? | | ????????????????????????????????????? | | ????????????????????????????????????? | | ????????????????????????????????????? | | ????????????????????????????????????? | | ????????????????????????????????????? | | ????????????????????????????????????? | | ????????????????????????????????????? | | ????????????????????????????????????? | | ????????????????????????????????????? | | ????????????????????????????????????? | | ????????????????????????????????????? | | ????????????????????????????????????? | | ????????????????????????????????????? | | ????????????????????????????????????? | | ????????????????????????????????????? | | ????????????????????????????????????? | +----------------------------------------------------+ Best States ------------- Heat Dissipation 25 Energy Generation 5 Energy Capacity 100 Matter Stores 234 Matter Capacity 300 Sight Range 16 Terrain Scan Density 10 Evasion (%) 62 Item Schematics ----------------- None Robot Schematics ------------------ None Fabricated ------------ Nothing Repaired ---------- Nothing Studied --------- None Alien Tech Used ----------------- None Achievements -------------- None Challenges ------------ None RPGLIKE | -11 -10 -10 -9 -9 -9 -8 --------- Run | Yrd Mat Min Mat Min Exi Min Levels Raised 2 | . . . 1 . 1 . XP Earned 6030 | 3000 80 600 1500 500 350 . XP Spent 960 | . . . 960 . . . Upgrades 12 | . . . 12 . . . Core Integrity 12 | . . . 12 . . . Protomatter Created . | . . . . . . . Protomatter Decayed 50 | . . 15 35 . . . Game ------ Seed LaunchDimensionalExtractor Manual? 0 Play Time 00:03:25 Cumulative 667.5 hours Start 2026.07.16 @ 08:10:04 End 2026.07.16 @ 08:13:27 Sessions 1 Manual Loads 0 Difficulty Rogue Special Mode Winter2019/RPGLIKE Game No. 316 Rogue 162 Adventurer 154 Explorer 0 Win Type - Total 22 Types 4/5/4/3/2/1/0/1/1/1 Lore% 95 Gallery% 88 Achievement% 68 Wizard Run 0 Options --------- Layout 0 ASCII 0 Keyboard 0 Movement Numpad Keybinds 0 Fullscreen 2 Font 18/SmallcapsGlow Map View 76x50 Zoom Use 0% Tactical HUD 1 Map Filters NONE Filters NONE Steam 1 RUN: d9ccc0bd-0a78-4643-ad3d-f7533f4fdb2f